bitfinex/quotes_SOLUSD_20250417
["timestamp","ask_amount","ask_price","bid_price","bid_amount"]
[1744898708203,7.57355734,132.04,131.96,0.28432314]
[1744898708609,7.57355734,132.04,131.95,16.12]
[1744898708610,26.0,132.03,131.95,16.12]
[1744898709308,26.51113466,132.02,131.95,16.12]
[1744898709725,26.51113466,132.02,131.96,0.28432314]
[1744898709726,7.5746099,132.02,131.96,0.28432314]
[1744898710633,7.57346258,132.04,131.96,0.28432314]
[1744898711221,9.16071849,132.05,131.98,0.28432314]
[1744898711425,6.141,132.08,131.98,18.933972]
[1744898711735,7.57174225,132.07,131.98,18.933972]
[1744898712526,7.57174225,132.07,131.98,0.28432314]
[1744898713232,26.50109789,132.07,131.97,7.57747973]
[1744898713435,18.64964886,132.06,131.95,7.57862826]
[1744898713631,44.64964886,132.02,131.91,7.58092638]
[1744898713834,90.9798,132.01,131.91,16.12]
[1744898714632,26.51716039,131.99,131.91,23.70075741]
[1744898715215,26.0,131.98,131.9,0.03]
[1744898716314,26.0,131.94,131.9,0.03]
[1744898716620,26.52922003,131.93,131.84,22.73485312]
[1744898716824,26.0,131.9,131.78,7.58840491]
[1744898717033,26.0,131.89,131.78,7.58840491]
[1744898717236,26.0,131.91,131.78,7.58840491]
[1744898717423,26.0,131.91,131.79,16.12]
[1744898717737,7.984,131.92,131.79,16.12]
[1744898717916,7.984,131.92,131.82,26.0]
[1744898718242,7.984,131.92,131.8,26.0]
[1744898718622,7.58092638,131.91,131.81,7.58667779]
[1744898718942,7.58092638,131.91,131.82,0.28432314]
[1744898719139,7.58092638,131.91,131.81,7.58667779]
[1744898719342,26.53324235,131.91,131.81,7.58667779]
[1744898720631,26.53324235,131.91,131.82,0.28432314]
[1744898721530,26.53324235,131.91,131.82,7.86996751]
[1744898721844,26.53324235,131.91,131.82,7.58564437]
[1744898722724,26.53324235,131.91,131.81,7.87100093]
[1744898722935,26.53324235,131.91,131.81,7.58667779]
[1744898723342,26.53324235,131.91,131.82,0.28432314]
[1744898723732,109.33324235,131.91,131.83,7.58552681]
[1744898723937,109.33324235,131.91,131.81,7.58667779]
[1744898725724,109.33324235,131.91,131.83,7.58552681]
[1744898726324,109.33324235,131.91,131.81,0.14216157]
[1744898726325,82.8,131.9,131.81,7.58664971]
[1744898726524,82.8,131.89,131.8,16.14]
[1744898727533,7.58265089,131.88,131.8,7.58708228]
[1744898727735,7.58265089,131.88,131.81,16.68]
[1744898728253,7.58265089,131.88,131.82,0.28432314]
[1744898728728,7.58265089,131.88,131.81,16.68]
[1744898728929,7.58265089,131.88,131.82,7.58610226]
[1744898729336,90.382304,131.89,131.82,7.58610226]
[1744898729744,90.382304,131.89,131.81,16.68]
[1744898730068,109.33749393,131.89,131.81,24.26647898]
[1744898730433,90.382304,131.89,131.81,24.26647898]
[1744898730839,90.382304,131.89,131.82,0.28432314]
[1744898731038,82.8,131.89,131.83,7.58552681]
[1744898731244,33.984,131.92,131.84,16.68]
[1744898731245,1.5939,131.92,131.84,16.68]
[1744898731448,9.1744928,131.92,131.84,16.68]
[1744898732453,28.12537212,131.92,131.84,7.58479035]
[1744898732955,28.12537212,131.92,131.84,24.26479035]
[1744898733457,28.12537212,131.92,131.84,16.68]
[1744898733656,82.8,131.91,131.75,6.16808128]
[1744898733949,82.8,131.91,131.78,7.58840388]
[1744898734148,108.8,131.91,131.79,0.28432314]
[1744898734556,7.58150113,131.9,131.81,0.28432314]
[1744898734759,7.58150113,131.9,131.82,16.68]
[1744898736529,26.53525397,131.9,131.82,24.26566627]
[1744898738957,26.53525397,131.9,131.82,16.68]
[1744898739832,7.58150113,131.9,131.83,0.28432314]
[1744898740844,7.58092638,131.91,131.85,0.28432314]
[1744898741048,7.58092638,131.91,131.84,7.58495145]
[1744898741254,90.38092638,131.91,131.82,24.26571612]
[1744898741434,109.33324235,131.91,131.82,24.26571612]
[1744898741855,82.8,131.9,131.82,16.68]
[1744898742553,82.8,131.9,131.82,24.2659901]
[1744898743066,7.58207597,131.89,131.82,24.2659901]
[1744898743373,90.38174427,131.9,131.83,0.28432314]
[1744898745144,90.38174427,131.9,131.84,7.58495145]
[1744898745344,90.38174427,131.9,131.8,26.55501856]
[1744898745865,90.38174427,131.9,131.81,0.28432314]
[1744898746554,90.38174427,131.9,131.82,7.58610226]
[1744898746762,90.38174427,131.9,131.83,16.68]
[1744898747151,7.58174427,131.9,131.84,0.28432314]
[1744898747345,1.5939,131.92,131.84,0.28432314]
[1744898748860,1.5939,131.92,131.86,0.28432314]
[1744898749054,9.17434933,131.92,131.86,0.28432314]
[1744898749256,9.17434933,131.92,131.82,99.34964886]
[1744898749257,8.2748,131.8,131.71,2.5872547]
[1744898749439,8.2748,131.8,131.6,26.90048052]
[1744898749440,41.24964886,131.68,131.6,11.65533061]
[1744898749642,6.6631,131.72,131.6,19.253756]
[1744898749837,6.6631,131.72,131.63,26.0]
[1744898750045,1.6117,131.73,131.64,17.4]
[1744898750260,3.9341567,131.76,131.61,1.0]
[1744898750460,3.9341567,131.76,131.6,39.253756]
[1744898750461,3.9341567,131.76,131.65,26.0]
[1744898750662,7.59013282,131.75,131.65,33.59589695]
[1744898751644,7.59013282,131.75,131.64,7.59626871]
[1744898751952,7.59013282,131.75,131.68,0.14216157]
[1744898752153,7.59013282,131.75,131.69,17.42]
[1744898752864,11.52386522,131.76,131.7,0.28432314]
[1744898753253,3.9341567,131.76,131.7,0.28432314]
[1744898753454,11.52377008,131.76,131.7,0.28432314]
[1744898753650,3.9341567,131.76,131.7,0.28432314]
[1744898753857,3.9341567,131.76,131.7,33.87690983]
[1744898754674,3.9341567,131.76,131.72,0.28432314]
[1744898754966,3.9341567,131.76,131.74,0.28432314]
[1744898755167,3.9341567,131.76,131.75,17.70432314]
[1744898755549,7.58562066,131.83,131.76,0.28432314]
[1744898755954,7.58562066,131.83,131.77,17.42]
[1744898756870,7.58437618,131.85,131.77,17.42]
[1744898757051,26.54531664,131.85,131.74,7.59056966]
[1744898757251,26.54531664,131.85,131.75,17.42]
[1744898758065,26.54531664,131.85,131.76,0.28432314]
[1744898758477,52.54531664,131.85,131.69,37.63264091]
[1744898758680,90.46719756,131.85,131.7,25.01301442]
[1744898758863,90.46719756,131.85,131.72,26.0]
[1744898759067,2.74507693,131.84,131.72,33.59166576]
[1744898759382,5.4901507,131.83,131.73,0.14216157]
[1744898759673,5.4901507,131.83,131.72,26.0]
[1744898759880,2.74507693,131.82,131.72,33.5918192]
[1744898760172,2.74507693,131.82,131.73,0.28432314]
[1744898760350,2.74507693,131.82,131.73,18.933972]
[1744898760683,2.74507693,131.82,131.75,0.28432314]
[1744898760847,7.58635496,131.82,131.75,7.87411333]
[1744898761046,7.58635496,131.82,131.75,0.28432314]
[1744898761651,26.55161061,131.82,131.71,7.6223996]
[1744898761868,26.55161061,131.82,131.74,17.42]
[1744898762050,7.58635496,131.82,131.74,17.42]
[1744898762594,26.0,131.79,131.71,0.03]
[1744898762964,7.58898079,131.77,131.71,0.03]
[1744898763280,26.56143278,131.77,131.71,0.03]
[1744898764067,2.74282191,131.76,131.71,0.03]
[1744898764859,33.58898079,131.77,131.71,0.03]
[1744898765059,52.56143278,131.77,131.71,0.03]
[1744898765264,1.5722,131.76,131.71,0.03]
[1744898765969,1.5722,131.76,131.71,4.1422456]
[1744898766685,6.6006,131.78,131.72,0.28432314]
[1744898766993,90.38745323,131.8,131.74,0.28432314]
[1744898767190,7.58745323,131.8,131.75,17.42]
[1744898767377,26.55558676,131.8,131.75,17.42]
[1744898768190,82.8,131.79,131.71,4.1422456]
[1744898768376,82.8,131.79,131.71,21.5622456]
[1744898768976,7.58840491,131.78,131.72,17.42]
[1744898769478,90.38807111,131.79,131.72,17.42]
[1744898769883,109.35764391,131.79,131.72,17.42]
[1744898770783,109.35764391,131.79,131.72,25.01167242]
[1744898770985,90.38807111,131.79,131.73,7.87516606]
[1744898771402,90.38807111,131.79,131.73,0.28432314]
[1744898771607,90.38807111,131.79,131.72,25.01173017]
[1744898772313,90.38807111,131.79,131.72,17.42]
[1744898772887,90.38807111,131.79,131.72,25.01176026]
[1744898773295,109.35764391,131.79,131.72,17.42]
[1744898774799,109.35764391,131.79,131.72,25.01184391]
[1744898775004,90.38807111,131.79,131.72,25.01184391]
[1744898775376,90.38807111,131.79,131.73,0.28432314]
[1744898775885,7.58807111,131.79,131.73,0.28432314]
[1744898776076,1.548,131.82,131.73,0.28432314]
[1744898777196,7.5868733,131.81,131.75,0.28432314]
[1744898778593,7.5868733,131.81,131.75,7.87436833]
[1744898778780,26.55356778,131.81,131.73,0.28432314]
[1744898778980,7.5868733,131.81,131.73,7.87540285]
[1744898780383,26.55356778,131.81,131.74,17.34]
[1744898780988,26.55356778,131.81,131.74,18.8045167]
[1744898781201,26.55356778,131.81,131.75,0.14216157]
[1744898781404,7.5868733,131.81,131.75,0.28432314]
[1744898781903,26.55356778,131.81,131.76,17.34]
[1744898782195,7.5868733,131.81,131.76,17.34]
[1744898783605,26.55356778,131.81,131.76,17.34]
[1744898785309,26.55356778,131.81,131.75,17.34]
[1744898786191,7.58627349,131.82,131.76,0.28432314]
[1744898786511,7.58627349,131.82,131.76,7.873418]
[1744898786883,6.3555,131.83,131.76,26.84730992]
[1744898787205,9.13631534,131.86,131.76,26.84730992]
[1744898787789,1.5523,131.86,131.78,0.28432314]
[1744898788100,9.13615954,131.86,131.77,15.933972]
[1744898788704,9.13615954,131.86,131.78,26.5594172]
[1744898789402,0.063,131.87,131.78,26.5594172]
[1744898789787,7.6463713,131.87,131.78,26.5594172]
[1744898790198,7.6463713,131.87,131.79,0.28432314]
[1744898790378,7.6463713,131.87,131.8,17.34]
[1744898790584,7.6463713,131.87,131.81,7.58667779]
[1744898791197,0.063,131.87,131.82,0.28432314]
[1744898791505,0.063,131.87,131.83,17.34]
[1744898791888,82.863,131.87,131.78,236.58]
[1744898792090,27.603,131.83,131.75,17.34]
[1744898792802,7.58610226,131.82,131.75,24.92974745]
[1744898793186,26.55135791,131.82,131.75,17.34]
[1744898794707,82.8,131.86,131.76,0.28432314]
[1744898794912,7.58437618,131.85,131.76,0.28432314]
[1744898795115,7.58437618,131.85,131.78,0.28432314]
[1744898796306,7.58437618,131.85,131.78,1.74883984]
[1744898796501,7.58406933,131.86,131.78,1.74883984]
[1744898796907,0.063,131.87,131.8,0.28432314]
[1744898797104,0.063,131.87,131.82,0.28432314]
[1744898797624,0.063,131.87,131.81,17.34]
[1744898797809,32.3828,131.84,131.78,1.4645167]
[1744898798012,33.9406,131.84,131.78,1.4645167]
[1744898798327,7.9406,131.84,131.78,1.4645167]
[1744898798493,0.063,131.87,131.79,0.14216157]
[1744898798807,0.063,131.87,131.81,7.87058446]
[1744898799403,0.063,131.87,131.8,17.34]
[1744898799803,0.063,131.87,131.8,24.92720813]
[1744898799996,0.063,131.87,131.8,17.34]
[1744898800812,26.54934384,131.83,131.78,1.4645167]
[1744898801517,26.0,131.8,131.78,1.4645167]
[1744898802617,26.0,131.8,131.72,17.34]
[1744898802814,26.55740192,131.79,131.72,17.34]
[1744898803003,26.55740192,131.79,131.71,2.6777289]
[1744898803196,26.55740192,131.79,131.72,17.34]
[1744898805516,26.55740192,131.79,131.71,2.6777289]
[1744898806020,109.35740192,131.79,131.71,2.6777289]
[1744898806420,147.29654753,131.79,131.71,2.6777289]
[1744898807918,1.5631,131.77,131.71,2.6777289]
[1744898808422,26.56344868,131.76,131.71,2.6777289]
[1744898808724,1.5631,131.77,131.71,2.6777289]
[1744898808725,1.5631,131.81,131.72,0.28432314]
[1744898808904,7.58725341,131.8,131.72,0.28432314]
[1744898810022,109.35538694,131.8,131.71,2.6777289]
[1744898810223,109.35538694,131.8,131.72,17.44]
[1744898811224,26.55538694,131.8,131.72,25.03185128]
[1744898811631,7.58725341,131.8,131.73,0.28432314]
[1744898812128,26.0,131.79,131.72,17.44]
[1744898812519,7.58840491,131.78,131.72,17.44]
[1744898812832,7.58840491,131.78,131.68,18.98529269]
[1744898812833,33.7525,131.74,131.67,0.03]
[1744898813018,33.7525,131.74,131.6,80.7]
[1744898813019,26.0,131.69,131.6,80.7]
[1744898813218,0.99999999,131.67,131.58,11.65533061]
[1744898813530,26.0,131.64,131.56,11.65533061]
[1744898814323,32.0867,131.67,131.56,19.25636131]
[1744898814524,26.58362448,131.66,131.56,14.25636131]
[1744898815041,26.58362448,131.66,131.57,0.14216157]
[1744898815215,26.58362448,131.66,131.57,18.79181043]
[1744898815612,7.59532128,131.66,131.58,0.14216157]
[1744898815831,7.59532128,131.66,131.6,0.28432314]
[1744898816051,7.59491773,131.67,131.6,18.933972]
[1744898816539,26.57881962,131.69,131.61,7.59820682]
[1744898816912,26.57881962,131.69,131.6,26.53259045]
[1744898817127,7.593591,131.69,131.6,26.53259045]
[1744898817539,7.593591,131.69,131.6,45.52955093]
[1744898817733,26.57756852,131.69,131.59,17.44]
[1744898817932,26.0,131.68,131.59,17.44]
[1744898818331,26.0,131.68,131.6,0.28432314]
[1744898818845,7.59474443,131.67,131.6,7.88292091]
[1744898819024,7.593591,131.69,131.6,26.53256977]
[1744898821338,52.57756852,131.69,131.59,80.7]
[1744898821523,52.57756852,131.69,131.61,17.44]
[1744898822654,90.54552356,131.69,131.61,17.44]
[1744898823446,7.593591,131.69,131.62,0.28432314]
[1744898823658,6.1576,131.74,131.64,18.933972]
[1744898823958,7.58852145,131.78,131.69,0.28432314]
[1744898824134,7.58852145,131.78,131.71,0.28432314]
[1744898824333,7.58801513,131.79,131.71,0.28432314]
[1744898824529,7.58801513,131.79,131.7,17.44]
[1744898824736,7.58801513,131.79,131.71,0.28432314]
[1744898824950,26.55337227,131.81,131.72,7.59186152]
[1744898825370,26.55337227,131.81,131.7,17.44]
[1744898825669,26.0,131.8,131.7,17.44]
[1744898826033,64.48676123,131.81,131.7,17.44]
[1744898826234,64.48676123,131.81,131.71,0.28432314]
[1744898826433,26.0,131.8,131.71,0.28432314]
[1744898826939,26.55740192,131.79,131.7,25.03288669]
[1744898827137,26.55740192,131.79,131.71,0.28432314]
[1744898827573,26.55740192,131.79,131.7,17.44]
[1744898827854,64.49654753,131.79,131.7,17.44]
[1744898828049,6.3035,131.75,131.7,17.44]
[1744898828350,1.5126,131.74,131.66,17.44]
[1744898828952,7.59186152,131.72,131.66,17.44]
[1744898829257,26.57151533,131.72,131.66,17.44]
[1744898830171,109.37151533,131.72,131.66,17.44]
[1744898830359,26.0,131.69,131.61,261.85798654]
[1744898830537,26.0,131.71,131.61,261.85798654]
[1744898831060,26.57555048,131.7,131.61,261.85798654]
[1744898831449,26.57555048,131.7,131.61,254.26]
[1744898832138,6.0056,131.66,131.58,17.44]
[1744898832357,1.569,131.65,131.58,17.44]
[1744898833041,7.59647523,131.64,131.58,17.44]
[1744898833380,26.58766331,131.64,131.58,17.44]
[1744898834455,7.59647523,131.64,131.58,17.44]
[1744898835548,26.0,131.63,131.54,17.47]
[1744898836245,26.0,131.63,131.54,25.07220906]
[1744898836455,7.59647523,131.64,131.55,0.28432314]
[1744898836650,7.59647523,131.64,131.55,18.933972]
[1744898836847,9.16511677,131.65,131.55,18.933972]
[1744898837351,9.16511677,131.65,131.56,7.60109455]
[1744898837864,9.16511677,131.65,131.57,0.28432314]
[1744898838359,9.16511677,131.65,131.62,47.03575109]
[1744898838740,28.1548623,131.65,131.61,47.03575109]
[1744898838941,28.1548623,131.65,131.59,47.03575109]
[1744898838942,47.03575109,131.64,131.59,47.03575109]
[1744898839139,47.03575109,131.64,131.54,117.17542317]
[1744898839140,26.0,131.6,131.54,0.03]
[1744898839353,32.87136578,131.59,131.54,0.03]
[1744898839560,1.5917,131.58,131.54,0.03]
[1744898839950,47.03575109,131.55,131.54,0.03]
[1744898840869,47.03575109,131.55,131.5,0.03]
[1744898841074,74.68405109,131.51,131.45,2.6477289]
[1744898841366,47.03575109,131.5,131.45,2.6477289]
[1744898841562,7.992,131.56,131.49,47.03575109]
[1744898841762,7.992,131.56,131.53,47.03575109]
[1744898841763,7.60167236,131.55,131.53,47.03575109]
[1744898842062,7.992,131.56,131.54,47.03575109]
[1744898842242,54.63453528,131.6,131.55,47.03575109]
[1744898842439,7.59878419,131.6,131.56,47.03575109]
[1744898842641,7.59878419,131.6,131.51,0.14216157]
[1744898842642,7.59878419,131.6,131.57,47.03575109]
[1744898843168,7.59878419,131.6,131.58,47.03575109]
[1744898843341,7.59878419,131.6,131.53,54.6381863]
[1744898843546,26.59574467,131.6,131.46,26.62406815]
[1744898843857,73.63149576,131.6,131.55,47.03575109]
[1744898844571,7.5999392,131.58,131.54,47.03575109]
[1744898844865,7.5999392,131.58,131.55,47.03575109]
[1744898845471,26.5997872,131.58,131.54,47.03575109]
[1744898845858,7.5999392,131.58,131.54,47.03575109]
[1744898846169,7.5999392,131.58,131.5,17.64]
[1744898846170,7.5999392,131.58,131.55,47.03575109]
[1744898846367,7.5999392,131.58,131.54,47.03575109]
[1744898846573,7.5999392,131.58,131.5,25.24442039]
[1744898846786,26.0,131.58,131.5,17.64]
[1744898847068,73.03575109,131.58,131.52,47.03575109]
[1744898847259,73.03575109,131.58,131.5,17.64]
[1744898847589,47.03575109,131.54,131.46,64.67575109]
[1744898847767,26.0,131.56,131.46,64.67575109]
[1744898847768,47.03575109,131.53,131.48,47.03575109]
[1744898848090,47.03575109,131.52,131.47,47.03575109]
[1744898848580,47.03575109,131.52,131.48,0.03]
[1744898848750,7.60398448,131.51,131.48,0.03]
[1744898849453,47.03575109,131.49,131.48,0.03]
[1744898849658,26.0,131.5,131.48,0.03]
[1744898849859,73.03575109,131.5,131.48,0.03]
[1744898850058,47.03575109,131.49,131.48,0.03]
[1744898850277,82.8,131.49,131.45,2.6477289]
[1744898850475,73.03575109,131.5,131.45,49.68347999]
[1744898850774,7.60514107,131.49,131.45,2.6477289]
[1744898851258,26.61799375,131.49,131.45,2.6477289]
[1744898851458,73.65374484,131.49,131.45,2.6477289]
[1744898851880,26.61799375,131.49,131.45,2.6477289]
[1744898852069,73.65374484,131.49,131.45,2.6477289]
[1744898852470,26.0,131.46,131.33,19.03478929]
[1744898852773,73.66387037,131.44,131.39,47.03575109]
[1744898852981,73.66387037,131.44,131.34,52.0138267]
[1744898852982,26.62811928,131.44,131.34,52.0138267]
[1744898853183,26.62811928,131.44,131.4,47.03575109]
[1744898853367,7.60803408,131.44,131.42,47.03575109]
[1744898853675,26.62016743,131.48,131.43,47.03575109]
[1744898853974,26.62016743,131.48,131.46,47.03575109]
[1744898853975,7.6057195,131.48,131.46,47.03575109]
[1744898854178,26.62001825,131.48,131.4,18.42]
[1744898854482,26.62001825,131.48,131.45,47.03575109]
[1744898854861,7.60521966,131.49,131.47,47.03575109]
[1744898855061,6.3245,131.52,131.48,47.03575109]
[1744898855062,7.60445597,131.51,131.48,47.03575109]
[1744898855267,7.60167236,131.55,131.5,47.03575109]
[1744898855467,7.60167236,131.55,131.51,47.03575109]
[1744898855666,26.60589498,131.55,131.47,0.28432314]
[1744898855970,7.7629,131.48,131.29,0.2]
[1744898856154,54.79865109,131.48,131.42,47.03575109]
[1744898856358,7.7629,131.48,131.43,47.03575109]
[1744898856553,47.03575109,131.47,131.39,18.42]
[1744898856759,7.7629,131.48,131.44,47.03575109]
[1744898856978,7.60629801,131.47,131.44,47.03575109]
[1744898857281,26.62204304,131.47,131.42,47.03575109]
[1744898857477,7.60629801,131.47,131.45,47.03575109]
[1744898857779,7.60514107,131.49,131.46,47.03575109]
[1744898857978,7.60514107,131.49,131.47,47.03575109]
[1744898858368,26.61799375,131.49,131.46,18.42]
[1744898859373,26.61799375,131.49,131.45,47.03575109]
[1744898859577,26.61799375,131.49,131.46,47.03575109]
[1744898860371,7.60514107,131.49,131.48,47.03575109]
[1744898860590,18.64964886,131.54,131.48,47.03575109]
[1744898860591,7.8903,131.56,131.48,47.03575109]
[1744898860882,7.66467236,131.55,131.49,26.0246897]
[1744898861082,7.66467236,131.55,131.54,47.03575109]
[1744898861590,7.66467236,131.55,131.53,47.03575109]
[1744898861881,7.66467236,131.55,131.49,18.42]
[1744898862183,26.66885327,131.55,131.49,18.42]
[1744898862362,26.66885327,131.55,131.52,47.03575109]
[1744898862564,26.66885327,131.55,131.51,47.03575109]
[1744898863174,73.70460436,131.55,131.49,18.42]
[1744898863361,73.70460436,131.55,131.5,47.03575109]
[1744898863684,47.03575109,131.54,131.49,65.45575109]
[1744898863872,73.70460436,131.55,131.49,18.42]
[1744898864058,73.70460436,131.55,131.49,65.45575109]
[1744898864262,26.66885327,131.55,131.49,18.42]
[1744898864457,26.66885327,131.55,131.5,47.03575109]
[1744898864663,26.66885327,131.55,131.49,18.42]
[1744898864664,47.03575109,131.54,131.49,18.42]
[1744898864876,47.03575109,131.53,131.49,18.42]
[1744898865063,26.60989888,131.53,131.5,47.03575109]
[1744898865263,26.60989888,131.53,131.49,18.42]
[1744898865783,73.64564997,131.53,131.49,18.42]
[1744898865984,73.64564997,131.53,131.47,237.1]
[1744898865985,47.03575109,131.51,131.44,18.42]
[1744898866283,47.03575109,131.5,131.45,47.03575109]
[1744898866485,32.2993,131.51,131.44,18.42]
[1744898866664,32.2993,131.51,131.47,47.03575109]
[1744898866986,19.00707063,131.53,131.5,47.03575109]
[1744898867484,47.03575109,131.51,131.45,19.12]
[1744898867781,47.03575109,131.51,131.45,66.15575109]
[1744898867982,47.03575109,131.5,131.45,19.12]
[1744898868188,26.0,131.52,131.4,7.61035007]
[1744898868189,47.03575109,131.48,131.4,7.61035007]
[1744898868376,26.0,131.49,131.43,47.03575109]
[1744898868571,26.0,131.49,131.44,47.03575109]
[1744898868883,26.0,131.49,131.45,47.03575109]
[1744898869088,7.6057195,131.48,131.46,47.03575109]
[1744898869671,7.908,131.55,131.47,66.15575109]
[1744898869867,7.908,131.55,131.51,47.03575109]
[1744898870078,80.94375109,131.55,131.5,47.03575109]
[1744898870285,47.03575109,131.52,131.47,66.15575109]
[1744898870462,26.0,131.5,131.47,19.12]
[1744898870866,47.03575109,131.49,131.47,19.12]
[1744898871079,7.6057195,131.48,131.4,13.90765795]
[1744898871287,7.6057195,131.48,131.45,47.03575109]
[1744898871689,7.6057195,131.48,131.46,47.03575109]
[1744898872084,7.6057195,131.48,131.45,47.03575109]
[1744898872266,7.60514107,131.49,131.45,47.03575109]
[1744898872466,7.60514107,131.49,131.46,47.03575109]
[1744898872673,26.61799375,131.49,131.45,47.03575109]
[1744898872874,26.61799375,131.49,131.46,47.03575109]
[1744898873067,7.60398448,131.51,131.48,47.03575109]
[1744898873285,7.60398448,131.51,131.49,47.03575109]
[1744898873469,156.44969678,131.51,131.44,19.12]
[1744898873665,47.03575109,131.47,131.4,19.12]
[1744898873870,47.03575109,131.46,131.41,47.03575109]
[1744898874066,47.03575109,131.47,131.42,47.03575109]
[1744898874302,7.60629801,131.47,131.44,47.03575109]
[1744898874505,26.62204304,131.47,131.44,47.03575109]
[1744898874803,26.62204304,131.47,131.43,47.03575109]
[1744898875495,26.62204304,131.47,131.4,19.12]
[1744898875496,47.03575109,131.5,131.4,26.73026213]
[1744898875696,7.60225026,131.54,131.49,47.03575109]
[1744898875894,7.60225026,131.54,131.5,47.03575109]
[1744898876274,26.60787592,131.54,131.5,47.03575109]
[1744898876884,26.60787592,131.54,131.47,19.12]
[1744898877086,26.60787592,131.54,131.5,47.03575109]
[1744898877281,26.60787592,131.54,131.51,47.03575109]
[1744898877282,7.60225026,131.54,131.51,47.03575109]
[1744898877499,0.063,131.55,131.53,94.07150218]
[1744898877693,0.063,131.55,131.54,47.03575109]
[1744898877895,0.063,131.55,131.54,53.69887423]
[1744898878272,0.063,131.55,131.49,18.64964886]
[1744898878273,0.063,131.55,131.49,0.28432314]
[1744898878616,0.063,131.55,131.54,47.03575109]
[1744898879794,0.063,131.55,131.54,54.63800135]
[1744898880001,0.063,131.55,131.54,54.92232449]
[1744898881502,0.063,131.55,131.54,47.03575109]
[1744898882378,0.063,131.55,131.54,47.32007423]
[1744898882905,7.59762953,131.62,131.54,54.92232449]
[1744898883075,7.66017617,131.63,131.61,47.03575109]
[1744898883276,7.66017617,131.63,131.54,7.8865734]
[1744898883277,0.063,131.63,131.62,47.03575109]
[1744898883777,156.48843428,131.63,131.52,237.08]
[1744898883975,109.45268319,131.63,131.54,47.03575109]
[1744898884190,47.03575109,131.59,131.54,47.03575109]
[1744898885003,7.59936165,131.59,131.55,47.03575109]
[1744898885177,73.63351687,131.59,131.54,47.03575109]
[1744898885381,47.03575109,131.58,131.53,47.03575109]
[1744898885784,73.63351687,131.59,131.54,47.03575109]
[1744898886182,47.03575109,131.57,131.5,19.12]
[1744898886502,47.03575109,131.57,131.52,47.03575109]
[1744898887013,26.60383094,131.56,131.52,47.03575109]
[1744898887181,26.60383094,131.56,131.53,47.03575109]
[1744898887382,26.60383094,131.56,131.52,47.03575109]
[1744898887604,73.63958203,131.56,131.5,19.12]
[1744898887804,73.63958203,131.56,131.51,47.03575109]
[1744898888013,73.03575109,131.54,131.44,237.04]
[1744898888215,73.03575109,131.54,131.49,47.03575109]
[1744898888216,47.03575109,131.53,131.49,47.03575109]
[1744898888516,47.03575109,131.53,131.48,47.03575109]
[1744898889012,26.61192213,131.52,131.48,47.03575109]
[1744898890385,73.03575109,131.51,131.46,47.03575109]
[1744898890681,47.03575109,131.5,131.46,47.03575109]
[1744898890902,47.03575109,131.49,131.4,19.12]
[1744898891185,7.60687661,131.46,131.43,47.03575109]
[1744898891888,7.60514107,131.49,131.45,47.03575109]
[1744898892083,7.60514107,131.49,131.47,47.03575109]
[1744898892287,7.60514107,131.49,131.48,47.03575109]
[1744898892605,32.0765,131.5,131.41,0.28432314]
[1744898892606,7.60476926,131.5,131.41,0.28432314]
[1744898892808,7.60476926,131.5,131.47,47.03575109]
[1744898893124,26.61394569,131.51,131.47,47.03575109]
[1744898893294,73.64969678,131.51,131.42,7.6091919]
[1744898893492,73.64969678,131.51,131.46,47.03575109]
[1744898893909,47.03575109,131.5,131.45,47.03575109]
[1744898895119,7.60514107,131.49,131.45,47.03575109]
[1744898895419,7.60514107,131.49,131.48,47.03575109]
[1744898895616,7.60514107,131.49,131.41,7.89409408]
[1744898895812,7.60514107,131.49,131.48,47.03575109]
[1744898895986,7.60398448,131.51,131.48,47.03575109]
[1744898896190,7.60398448,131.51,131.5,47.03575109]
[1744898896385,7.60398448,131.51,131.49,47.03575109]
[1744898896590,26.61394569,131.51,131.48,47.03575109]
[1744898897115,7.6057195,131.48,131.45,19.12]
[1744898897293,26.0,131.48,131.39,47.06575109]
[1744898897496,73.03575109,131.48,131.43,47.03575109]
[1744898897894,73.03575109,131.48,131.45,47.03575109]
[1744898897895,26.0,131.48,131.45,47.03575109]
[1744898898383,73.03575109,131.48,131.43,47.03575109]
[1744898898812,26.0,131.48,131.44,47.03575109]
[1744898899191,7.60629801,131.47,131.44,47.03575109]